bitfinex/quotes_ETHUSD_20250430
["timestamp","ask_amount","ask_price","bid_price","bid_amount"]
[1745971200868,1.029,1802.2,1800.2,0.8187]
[1745971201989,0.55,1802.1,1800.2,0.8187]
[1745971202191,0.55,1801.9,1800.2,0.8187]
[1745971202900,0.55,1801.5,1800.2,0.8187]
[1745971203068,6.15,1801.4,1800.2,0.8187]
[1745971203262,0.615,1801.3,1800.2,0.8187]
[1745971205253,23.064,1801.2,1800.1,0.58052552]
[1745971205458,28.916,1801.2,1800.1,0.58052552]
[1745971205658,28.916,1801.2,1800.2,0.7743]
[1745971205953,2.8916,1801.1,1800.2,0.7743]
[1745971206161,6.15,1801.0,1800.2,0.7743]
[1745971207894,6.15,1801.0,1800.3,0.8332]
[1745971208063,4.715,1800.9,1800.5,0.8332]
[1745971211268,4.715,1800.9,1800.3,1.37052552]
[1745971211470,5.1865,1800.9,1800.2,3.68064381]
[1745971214295,4.715,1800.9,1800.4,3.68064381]
[1745971214596,2.23219614,1800.8,1800.5,0.8143]
[1745971214898,4.715,1800.9,1800.5,0.8143]
[1745971217979,18.349,1801.2,1800.6,0.55]
[1745971217980,23.064,1801.2,1800.6,0.55]
[1745971218204,4.715,1801.2,1800.7,0.7854]
[1745971221403,5.8015,1801.2,1800.7,0.7854]
[1745971221583,4.715,1801.2,1800.8,0.05552569]
[1745971221786,4.715,1801.2,1800.9,0.8008]
[1745971222171,4.715,1801.5,1800.9,0.8008]
[1745971222499,4.715,1801.6,1800.9,0.8008]
[1745971222702,4.715,1801.6,1801.0,0.55]
[1745971223004,4.715,1801.6,1801.1,0.8125]
[1745971223904,5.1865,1801.6,1801.1,0.8125]
[1745971225283,4.715,1801.6,1801.1,0.8125]
[1745971226403,4.715,1801.6,1801.2,0.05551363]
[1745971226709,4.715,1801.6,1801.1,0.8125]
[1745971226870,4.715,1801.6,1801.2,0.05551309]
[1745971227080,6.15,1801.8,1801.2,0.87681182]
[1745971227329,6.15,1801.8,1801.5,0.55]
[1745971227479,6.15,1801.8,1801.3,0.55]
[1745971227480,4.715,1802.2,1801.6,0.87679648]
[1745971227823,4.715,1802.2,1801.6,0.8213]
[1745971228176,4.715,1802.2,1801.6,1.24781439]
[1745971229714,4.715,1802.2,1801.7,0.821]
[1745971233808,10.863,1802.5,1801.7,1.3234]
[1745971234006,10.863,1802.5,1801.8,0.7734]
[1745971237895,13.784,1802.5,1801.6,0.7625]
[1745971238099,6.15,1802.4,1801.6,0.7625]
[1745971238721,6.15,1802.4,1801.4,4.44314381]
[1745971239122,6.15,1802.4,1801.4,3.68064381]
[1745971239463,5.851,1802.2,1801.4,3.68064381]
[1745971239595,4.707,1802.1,1801.4,3.68064381]
[1745971240230,4.707,1802.1,1801.5,0.8059]
[1745971250347,0.60944999,1801.9,1801.5,0.8059]
[1745971255749,6.70394993,1801.9,1801.5,0.8059]
[1745971262764,6.09449994,1801.9,1801.5,0.8059]
[1745971266842,6.09449994,1801.9,1801.5,0.79911341]
[1745971271677,6.09449994,1801.9,1801.2,0.7558]
[1745971273058,10.558,1802.1,1801.2,0.7558]
[1745971273059,11.94549994,1801.8,1801.2,0.7558]
[1745971273263,5.89654999,1801.7,1801.2,0.7558]
[1745971273786,5.89654999,1801.7,1801.1,4.43644381]
[1745971276360,11.94549994,1801.6,1801.1,0.7558]
[1745971276690,6.09449994,1801.5,1801.0,3.68064381]
[1745971276863,0.60944999,1801.4,1801.0,3.68064381]
[1745971277059,4.702,1801.3,1801.0,3.68064381]
[1745971278762,4.702,1801.3,1800.9,0.7689]
[1745971279590,4.702,1801.3,1800.8,0.793]
[1745971279779,6.09449994,1801.2,1800.6,3.68064381]
[1745971279961,0.60944999,1801.1,1800.6,4.47364381]
[1745971281895,0.60944999,1801.1,1800.6,0.793]
[1745971283506,6.09449994,1801.0,1800.6,0.793]
[1745971283690,4.703,1800.9,1800.6,0.793]
[1745971286798,4.703,1800.9,1800.1,0.8067]
[1745971286994,0.4703,1800.8,1800.1,0.42718667]
[1745971287199,0.4703,1800.8,1800.2,0.8067]
[1745971290908,6.09449994,1800.7,1800.2,0.8067]
[1745971300777,4.7,1801.1,1800.5,0.8261]
[1745971300977,4.7,1801.1,1800.7,0.8261]
[1745971301217,4.7,1801.1,1800.7,1.24215936]
[1745971301513,4.7,1801.1,1800.8,0.8235]
[1745971302680,6.09449994,1801.3,1800.9,0.05552206]
[1745971302886,4.699,1801.3,1801.0,0.8235]
[1745971303409,4.699,1801.3,1800.9,0.8235]
[1745971303719,6.09449994,1802.2,1801.1,0.8235]
[1745971303720,4.699,1801.8,1801.1,0.8235]
[1745971303885,4.699,1801.9,1801.5,0.8235]
[1745971304090,4.699,1801.9,1801.7,0.8033]
[1745971305721,4.699,1801.9,1801.6,0.55]
[1745971305893,4.699,1801.9,1801.8,1.3586]
[1745971306089,10.79249994,1802.2,1801.9,0.8086]
[1745971306294,4.698,1802.2,1801.9,0.8086]
[1745971310223,4.698,1802.2,1801.8,0.4262079]
[1745971310224,6.09449994,1802.7,1802.2,0.55]
[1745971310528,4.747,1802.9,1802.5,0.7864]
[1745971311525,4.747,1802.9,1802.6,0.8126]
[1745971312947,0.05,1802.9,1802.7,0.55]
[1745971313160,10.79149994,1803.5,1802.8,0.7921]
[1745971313320,10.79149994,1803.5,1803.0,0.7921]
[1745971313515,10.79149994,1803.5,1803.2,0.8173]
[1745971313516,4.697,1803.5,1803.2,0.8173]
[1745971315028,5.1667,1803.5,1803.2,0.8173]
[1745971317718,5.1667,1803.5,1802.5,14.63264184]
[1745971317719,5.1667,1803.5,1802.9,0.8042]
[1745971318732,0.0568,1803.4,1802.6,0.7705]
[1745971318928,6.09449994,1803.3,1802.6,0.7705]
[1745971319160,0.60944999,1803.2,1802.6,1.39381418]
[1745971319358,4.694,1803.1,1802.6,4.39381418]
[1745971319562,4.694,1803.1,1802.6,3.7705]
[1745971320266,4.694,1803.1,1802.6,0.7705]
[1745971320779,4.694,1803.1,1802.6,3.7705]
[1745971321074,0.0568,1803.0,1802.6,0.7705]
[1745971321237,6.15129994,1803.0,1802.4,0.7592]
[1745971321562,6.62637994,1803.0,1802.4,0.7592]
[1745971322088,6.09449994,1802.9,1801.8,0.8047]
[1745971322239,6.15129994,1802.8,1801.8,0.8047]
[1745971322440,4.694,1802.7,1801.8,0.8047]
[1745971322644,0.4694,1802.6,1801.8,0.8047]
[1745971324884,0.4694,1802.6,1801.8,1.22183412]
[1745971326543,0.4694,1802.6,1801.8,0.8047]
[1745971327371,0.0568,1802.5,1801.8,0.8047]
[1745971327570,6.15129994,1802.5,1801.8,0.8047]
[1745971327882,0.61512999,1802.4,1801.8,0.8047]
[1745971328084,4.691,1802.3,1801.8,0.8047]
[1745971333079,4.691,1802.3,1801.8,0.8047]
[1745971334773,6.15129994,1802.2,1801.1,0.8284]
[1745971334938,6.15129994,1802.2,1801.5,0.8284]
[1745971335143,0.61512999,1802.1,1801.5,0.8284]
[1745971335344,0.0568,1802.0,1801.0,0.8284]
[1745971335574,4.691,1801.9,1801.1,0.55]
[1745971335876,4.691,1801.9,1801.1,0.97283048]
[1745971336065,5.77522999,1801.9,1801.1,0.97283048]
[1745971336984,5.77522999,1801.9,1801.1,0.42283048]
[1745971337272,0.0568,1801.8,1801.0,0.8839136]
[1745971337444,0.0568,1801.8,1801.1,1.319]
[1745971337640,5.77522999,1801.9,1801.1,0.55]
[1745971337641,4.691,1801.9,1801.1,0.55]
[1745971337846,4.691,1801.9,1801.2,0.769]
[1745971338443,4.691,1801.9,1801.3,0.55]
[1745971338854,4.691,1801.9,1801.2,0.769]
[1745971339054,5.77522999,1801.9,1801.2,0.769]
[1745971339477,4.691,1801.9,1801.4,0.7813]
[1745971339879,24.43049994,1802.3,1801.5,0.55]
[1745971340053,4.692,1802.2,1801.6,0.771]
[1745971340255,4.692,1802.2,1801.7,0.55]
[1745971340575,4.692,1802.2,1801.8,0.771]
[1745971343278,4.692,1802.5,1802.0,0.7987]
[1745971351387,0.0568,1802.4,1801.8,0.7895]
[1745971351957,10.78649994,1802.5,1801.1,7.9355512]
[1745971351958,6.09449994,1802.3,1801.3,0.7895]
[1745971352158,0.0568,1802.1,1801.1,3.62430784]
[1745971352388,0.0568,1801.8,1801.1,3.62430784]
[1745971352589,10.78549994,1801.7,1801.1,3.62430784]
[1745971354019,10.78549994,1801.7,1801.1,2.83480784]
[1745971354311,0.0568,1801.6,1801.1,2.83480784]
[1745971354474,1.14102999,1801.6,1801.1,2.83480784]
[1745971354664,1.14102999,1801.6,1800.3,0.85602152]
[1745971354865,6.09449994,1801.5,1800.3,0.8005]
[1745971355160,6.09449994,1801.5,1800.4,0.8005]
[1745971355402,6.09449994,1801.5,1800.4,0.85602576]
[1745971355596,0.60944999,1801.4,1800.4,0.85602576]
[1745971355909,4.692,1801.3,1800.4,0.85602576]
[1745971356107,4.692,1801.2,1800.4,0.85602576]
[1745971356404,4.692,1801.2,1800.7,0.55]
[1745971356908,4.692,1801.2,1800.8,0.8207]
[1745971357674,4.691,1801.1,1800.8,1.24268731]
[1745971357909,4.691,1801.0,1800.8,1.24268731]
[1745971359205,0.60944999,1801.4,1800.8,1.24268731]
[1745971359377,4.691,1801.3,1800.8,1.79268731]
[1745971360605,6.09449994,1801.5,1800.8,1.79268731]
[1745971360808,6.09449994,1801.5,1800.9,1.3372]
[1745971361013,4.691,1801.4,1801.1,0.7872]
[1745971363284,4.691,1801.3,1801.1,0.7872]
[1745971365209,4.691,1801.3,1800.9,0.7548]
[1745971365415,4.691,1801.3,1800.7,6.9248]
[1745971365617,4.691,1801.3,1800.8,3.0]
[1745971365789,0.0568,1801.2,1800.8,3.0]
[1745971365994,0.53158,1801.2,1800.8,3.0]
[1745971367087,0.53158,1801.2,1800.7,1.17854246]
[1745971368708,0.0568,1801.2,1800.7,1.17854246]
[1745971371320,0.0568,1801.2,1800.7,0.7548]
[1745971373717,0.0568,1801.2,1800.5,0.7674]
[1745971373929,0.0568,1801.2,1800.5,1.19045382]
[1745971377102,0.0568,1801.2,1800.5,1.19045382]
[1745971383022,0.0568,1801.2,1800.5,0.42305382]
[1745971383224,0.0568,1801.1,1800.4,0.55]
[1745971383718,0.0568,1801.1,1800.3,0.7526]
[1745971383719,0.0568,1801.0,1799.9,3.0]
[1745971383899,4.692,1800.9,1800.1,0.7937]
[1745971384098,0.4692,1800.8,1800.1,1.20349002]
[1745971384312,0.0568,1800.7,1800.1,1.20349002]
[1745971384536,0.0568,1800.7,1800.1,0.40979002]
[1745971384704,0.0568,1800.7,1799.9,3.8006]
[1745971384901,0.0568,1800.7,1799.9,0.8006]
[1745971385329,0.0568,1800.7,1800.0,0.55]
[1745971385946,0.0568,1800.6,1799.8,1.38855788]
[1745971386146,0.0568,1800.4,1799.8,1.38855788]
[1745971386641,4.693,1800.3,1799.9,0.55]
[1745971386848,4.693,1800.3,1799.8,4.7983062]
[1745971387249,4.693,1800.3,1799.8,1.7983062]
[1745971388747,0.0568,1800.2,1799.8,1.38855788]
[1745971389052,0.53178,1800.2,1799.5,0.87135083]
[1745971389347,0.0568,1800.1,1799.5,0.8158]
[1745971390951,0.0568,1800.1,1799.6,0.05556197]
[1745971391320,0.0568,1800.1,1799.7,0.55]
[1745971391516,4.692,1800.0,1799.7,0.55]
[1745971392060,4.692,1800.0,1799.7,0.97504142]
[1745971394658,0.0568,1800.1,1799.7,0.97504142]
[1745971394820,4.692,1799.9,1799.7,0.42504142]
[1745971395025,4.692,1799.9,1799.4,3.0]
[1745971395026,5.1612,1799.9,1799.4,3.0]
[1745971395226,5.1612,1799.9,1799.4,0.55]
[1745971395958,0.0568,1799.8,1799.4,0.55]
[1745971399729,0.0568,1799.8,1799.4,0.97495659]
[1745971404728,0.0568,1799.8,1799.4,0.42495659]
[1745971404876,0.53168,1799.8,1799.4,0.42495659]
[1745971405182,0.53168,1799.8,1799.3,0.55]
[1745971405350,0.53168,1799.8,1799.2,0.55]
[1745971406056,0.0568,1799.7,1798.9,6.9733]
[1745971406236,0.0568,1799.7,1799.0,0.55]
[1745971406436,0.0568,1799.7,1799.0,0.9697937]
[1745971406637,0.0568,1799.7,1799.0,0.4197937]
[1745971406862,0.0568,1799.7,1798.9,0.8033]
[1745971407173,6.09449994,1799.7,1798.9,0.42025267]
[1745971407340,0.0568,1799.6,1798.7,0.8196]
[1745971407671,0.0568,1799.4,1798.7,0.8196]
[1745971407865,0.0568,1799.4,1798.5,0.7569]
[1745971408066,0.0568,1799.4,1798.2,0.7569]
[1745971408067,3.0,1799.3,1798.2,0.7569]
[1745971408277,0.0568,1799.1,1798.4,0.42586552]
[1745971408469,0.0568,1798.9,1798.4,0.42586552]
[1745971408784,4.694,1798.8,1798.4,0.42586552]
[1745971409154,4.694,1798.8,1798.2,0.7569]
[1745971409550,0.0568,1798.7,1797.9,0.7531]
[1745971409756,0.47508,1798.7,1797.9,0.7531]
[1745971409952,0.47508,1798.7,1797.8,0.47738457]
[1745971409953,0.0568,1798.6,1797.8,0.47738457]
[1745971410151,0.0568,1798.5,1797.5,0.2736288]
[1745971410481,0.0568,1798.3,1797.6,0.05560936]
[1745971410671,0.0568,1798.3,1797.3,0.2968925]
[1745971410875,1.14142999,1798.3,1797.3,0.2968925]
[1745971411290,0.0568,1798.2,1797.3,0.2968925]
[1745971411456,0.0568,1798.2,1797.5,0.7877]
[1745971411656,0.0568,1798.2,1797.7,0.55]
[1745971411984,0.0568,1798.2,1797.6,0.55]
[1745971412690,0.0568,1798.2,1797.6,0.60561405]
[1745971412981,0.0568,1798.9,1798.1,0.8125]
[1745971413192,0.0568,1798.9,1798.2,0.55]
[1745971414159,4.7528,1798.9,1798.2,0.55]
[1745971414572,4.7528,1798.9,1798.2,0.96985507]
[1745971416395,6.09449994,1799.4,1798.2,0.96985507]
[1745971416558,5.36224999,1799.3,1798.4,0.55]
[1745971416899,5.36224999,1799.3,1798.3,0.7553]
[1745971417081,5.36224999,1799.3,1798.4,0.55]
[1745971418961,0.0568,1799.2,1798.4,0.60559026]
[1745971419282,4.696,1799.3,1798.6,0.55]
[1745971419490,4.7708,1799.5,1798.8,0.55]
[1745971419747,4.7708,1799.5,1799.0,0.55]
[1745971420063,4.7708,1799.5,1798.8,0.55]
[1745971420388,0.0568,1799.7,1799.1,0.55]
[1745971420580,0.0568,1799.7,1799.3,0.55]
[1745971421001,0.0568,1799.7,1799.1,0.55]
[1745971422701,0.0568,1799.7,1799.1,0.60557231]
[1745971422879,0.0568,1799.7,1799.1,0.55]
[1745971423199,0.0568,1799.7,1799.1,1.40981777]
[1745971424597,0.0568,1799.7,1799.1,0.55]
[1745971425687,0.0568,1799.7,1799.1,1.02333576]
[1745971426016,0.0568,1799.7,1799.2,0.7503]
[1745971429709,0.0568,1799.7,1799.2,0.80587219]
[1745971429912,0.0568,1799.7,1799.2,0.7503]
[1745971430109,4.714,1799.8,1799.3,0.55]
[1745971431750,5.19108,1799.8,1799.3,0.55]
[1745971433758,0.0568,1799.7,1799.3,0.55]
[1745971436223,4.712,1799.6,1799.2,0.55]
[1745971436424,4.712,1799.6,1799.4,0.55]
[1745971437624,4.712,1799.6,1799.1,1.3046]
[1745971437821,4.712,1799.6,1799.1,2.14218103]
[1745971438246,0.0568,1799.5,1799.1,1.71172103]
[1745971439761,0.0568,1799.5,1799.1,1.3046]
[1745971439941,0.0568,1799.5,1798.9,0.7773]
[1745971440258,0.0568,1799.5,1799.0,0.55]
[1745971440845,0.0568,1799.5,1798.9,0.7773]
[1745971441057,0.53368,1799.5,1798.9,0.7773]
[1745971441466,0.53368,1799.5,1798.9,4.44638369]
[1745971442169,0.53368,1799.5,1798.9,3.66908369]
[1745971442947,0.0568,1799.4,1798.9,3.66908369]
[1745971443563,0.0568,1799.3,1798.9,3.66908369]
[1745971443742,0.0568,1799.1,1798.9,3.66908369]
[1745971445544,0.0568,1799.1,1798.5,0.55]
[1745971446671,4.713,1799.0,1798.5,0.55]
[1745971446875,4.713,1798.9,1798.5,0.55]
[1745971450169,4.713,1798.9,1798.4,0.55]
[1745971450350,0.0568,1798.8,1798.4,0.55]
[1745971451133,0.0568,1798.8,1798.2,3.0]
[1745971451541,0.2,1798.7,1798.3,0.55]
[1745971452176,0.2,1798.7,1798.4,0.7963]
[1745971452485,0.2,1798.7,1798.5,0.60559514]
[1745971452863,0.2,1798.7,1798.6,1.3502]
[1745971453444,0.2,1798.7,1798.6,1.40578581]
[1745971453693,4.71,1799.1,1798.7,0.55]
[1745971453842,4.71,1799.1,1798.9,0.55]
[1745971454046,0.2,1799.0,1798.9,0.55]
[1745971454280,0.2,1799.0,1798.7,0.60558614]
[1745971454454,0.2,1799.0,1798.7,0.55]
[1745971454853,0.2,1799.0,1798.8,0.05558696]
[1745971455054,0.2,1799.0,1798.9,0.55]
[1745971455442,0.2,1799.0,1798.7,0.60558627]
[1745971455643,0.2,1799.0,1798.6,0.8002]
[1745971456478,0.2,1799.0,1798.7,0.55]
[1745971457246,2.42463213,1799.1,1798.7,0.98502]
[1745971460674,2.42463213,1799.1,1798.7,4.65410369]
[1745971470801,2.48143213,1799.1,1798.7,4.65410369]
[1745971471187,2.48143213,1799.1,1798.8,0.55]
[1745971473128,2.48143213,1799.1,1798.7,3.55]
[1745971473280,0.0568,1799.0,1798.6,3.66908369]
[1745971473613,0.0568,1799.0,1798.7,0.55]
[1745971476494,0.0568,1799.0,1798.7,0.97190837]
[1745971476699,2.42463213,1799.1,1798.7,1.74900837]
[1745971478499,0.0568,1799.2,1798.7,4.74900837]
[1745971478811,0.0568,1799.4,1799.0,0.55]
[1745971479008,0.0568,1799.4,1799.0,0.60557612]
[1745971479378,0.0568,1799.4,1799.0,0.55]
[1745971480087,0.0568,1799.4,1799.0,0.96681973]
[1745971482510,0.0568,1799.4,1799.2,0.55]
[1745971490217,4.71,1799.5,1799.2,0.55]
[1745971490921,18.4258,1799.8,1799.4,0.55]
[1745971491212,23.1208,1799.8,1799.6,0.55]
[1745971491412,4.695,1799.8,1799.4,0.55]
[1745971492008,0.0568,1799.9,1799.4,0.55]
[1745971492321,4.7518,1799.9,1799.4,0.55]
[1745971492717,0.0568,1800.1,1799.6,0.55]
[1745971492924,0.0568,1800.1,1799.8,0.55]
[1745971493094,4.7518,1800.3,1800.0,0.55]
[1745971493295,0.0568,1800.5,1800.2,0.55]
[1745971493617,0.0568,1800.7,1800.3,0.55]
[1745971494589,4.695,1800.7,1800.3,0.55]
[1745971497725,5.1645,1800.7,1800.3,0.55]
[1745971498430,4.695,1800.7,1800.3,0.55]
[1745971498835,4.695,1800.7,1800.3,3.55]
[1745971499019,0.0568,1800.6,1800.2,3.66908369]
[1745971499532,6.09449994,1800.6,1800.2,3.66908369]
[1745971499710,0.0568,1800.5,1800.2,3.66908369]
[1745971499908,0.0568,1800.4,1800.2,3.66908369]
[1745971500100,4.694,1800.3,1800.2,3.66908369]
[1745971500715,4.7508,1800.3,1800.2,3.66908369]
[1745971501315,10.84529994,1800.3,1800.2,3.66908369]
[1745971501930,13.84529994,1800.3,1800.2,3.66908369]
[1745971502121,13.84529994,1800.3,1799.5,3.66908369]
[1745971502122,0.0568,1800.2,1799.5,3.66908369]
[1745971502349,0.0568,1800.0,1799.5,3.66908369]
[1745971502626,4.693,1799.9,1799.5,3.66908369]
[1745971503023,0.0568,1799.8,1799.5,3.66908369]
[1745971503227,0.53178,1799.8,1799.5,3.66908369]
[1745971504035,6.62627994,1799.8,1799.5,3.66908369]
[1745971504229,6.62627994,1799.8,1799.2,0.55]
[1745971504398,0.0568,1799.7,1799.0,3.66908369]
[1745971504603,0.0568,1799.6,1799.1,0.55]
[1745971504804,0.0568,1799.6,1799.0,3.66908369]
[1745971504805,4.694,1799.5,1799.0,3.66908369]
[1745971505139,4.694,1799.5,1799.1,0.55]
[1745971505305,4.694,1799.4,1799.1,0.55]
[1745971505640,4.694,1799.4,1799.3,0.55]
[1745971506530,4.694,1799.5,1799.3,0.55]
[1745971506702,6.15129994,1800.1,1799.4,0.8254]
[1745971506907,4.694,1800.0,1799.6,0.55]
[1745971507210,4.694,1800.0,1799.8,0.55]
[1745971508540,18.4178,1800.3,1799.8,0.55]
[1745971508715,18.361,1800.3,1799.9,0.05555933]
[1745971509043,4.694,1800.2,1800.1,0.55]
[1745971510909,4.5515,1800.2,1800.1,0.55]
[1745971513358,4.5515,1800.2,1799.8,0.7522]
[1745971513517,6.84275,1800.2,1799.9,0.55]
[1745971513726,4.41567642,1800.2,1799.7,0.55]
[1745971514255,4.692,1800.1,1799.7,0.55]
[1745971514952,4.692,1800.1,1799.6,4.42128369]
[1745971515116,4.692,1800.1,1799.7,0.55]
[1745971515321,5.1612,1800.1,1799.4,3.66908369]
[1745971515522,5.1612,1800.1,1799.5,0.05556752]
[1745971515732,5.1612,1800.1,1799.5,0.55]
[1745971516249,4.692,1800.1,1799.7,0.55]
[1745971516629,6.09449994,1800.2,1799.7,0.55]
[1745971516835,4.692,1800.1,1799.9,1.3029]
[1745971519266,4.692,1800.1,1799.8,0.7501]
[1745971519470,4.692,1800.1,1799.9,0.55]
[1745971520559,6.09449994,1800.8,1800.1,0.55]
[1745971520764,4.692,1800.6,1800.2,0.806]
[1745971522444,4.692,1800.6,1800.3,0.55]
[1745971528565,4.692,1800.6,1800.3,0.55]
[1745971534287,4.691,1800.9,1800.5,0.55]
[1745971534485,0.59741351,1800.8,1800.7,0.55]
[1745971534783,4.691,1800.9,1800.7,0.55]
[1745971534985,0.59741351,1800.8,1800.7,0.55]
[1745971535342,4.691,1800.9,1800.7,0.55]
[1745971535576,0.59741351,1800.8,1800.4,0.7809]
[1745971535783,0.59741351,1800.8,1800.5,0.55]
[1745971535941,4.691,1800.9,1800.5,0.55]
[1745971536144,0.59741351,1800.8,1800.5,0.55]
[1745971536386,5.1601,1800.9,1800.5,0.55]
[1745971536548,0.59760891,1800.7,1800.5,0.55]
[1745971536878,0.59741345,1800.6,1800.2,4.46308369]
[1745971537079,4.691,1800.5,1800.2,3.66908369]
[1745971537387,1.06623835,1800.4,1800.2,3.66908369]
[1745971538486,1.06623835,1800.4,1800.1,3.66908369]
[1745971539580,1.06623835,1800.4,1800.2,0.55]
[1745971539581,0.59713835,1800.4,1800.2,0.55]
[1745971539886,0.59713835,1800.4,1800.2,3.60554776]
[1745971540128,0.59713835,1800.4,1800.3,0.55]
[1745971540422,4.691,1800.9,1800.6,0.55]
[1745971547751,6.09449994,1801.2,1800.6,0.55]
[1745971547903,4.691,1801.1,1800.7,0.8186]
[1745971549443,6.09449994,1801.2,1800.8,0.55]
[1745971549645,4.69,1801.1,1800.8,0.55]
[1745971550845,4.69,1801.3,1801.0,0.55]
[1745971551148,4.69,1801.3,1801.1,0.7648]
[1745971552233,4.69,1801.3,1801.2,0.55]
[1745971557657,2.2078201,1801.3,1801.2,0.55]
[1745971560741,2.2078201,1801.3,1801.0,1.76971391]
[1745971560935,18.354,1801.5,1801.0,1.3595]
[1745971561138,0.77913243,1802.1,1801.3,0.55]
[1745971561440,0.77913243,1802.1,1801.6,0.7892]
[1745971561441,4.689,1802.1,1801.6,0.7892]
[1745971561623,4.689,1802.1,1801.7,0.55]
[1745971562374,4.689,1802.1,1801.7,0.96758155]
[1745971562520,0.1114614,1802.7,1801.9,0.55]
[1745971562860,0.1114614,1802.7,1802.1,0.55]
[1745971563048,5.19266835,1802.6,1802.1,0.55]
[1745971563357,0.51926684,1802.5,1802.1,0.55]
[1745971563544,0.46158992,1802.4,1802.1,0.55]
[1745971566220,5.14958992,1802.4,1802.1,0.55]
[1745971567429,5.14958992,1802.4,1801.8,3.7815]
[1745971567628,5.14958992,1802.4,1801.9,0.55]
[1745971567830,5.7164756,1802.4,1801.9,0.55]
[1745971568557,5.7164756,1802.4,1801.9,0.9666435]
[1745971568764,5.14958992,1802.4,1801.9,0.9666435]
[1745971568958,0.46158992,1802.4,1801.9,0.9666435]
[1745971569163,4.687,1802.3,1802.1,0.55]
[1745971569357,0.47363804,1802.2,1802.1,0.55]
[1745971573867,0.47363804,1802.2,1801.8,0.7699]
[1745971574070,0.98970184,1802.2,1801.5,0.7699]
[1745971574390,7.08420178,1802.2,1801.5,3.7699]
[1745971574578,7.08420178,1802.2,1801.6,0.55]
[1745971574898,7.08420178,1802.2,1801.5,3.7699]
[1745971575191,11.32513798,1802.2,1801.8,0.55]
[1745971575500,11.32513798,1802.2,1802.0,0.55]
[1745971575653,5.23063804,1802.2,1802.0,0.55]
[1745971578358,5.23063804,1802.2,1802.0,0.95776633]
[1745971580300,2.74954791,1802.2,1802.0,0.95776633]
[1745971580593,0.43254571,1802.1,1802.0,0.95776633]
[1745971581086,2.74954791,1802.2,1802.0,1.71126633]
[1745971581252,4.757,1802.5,1802.0,1.71126633]
[1745971581454,0.43274926,1802.1,1802.0,1.71126633]
[1745971581650,4.757,1802.5,1802.0,1.71126633]
[1745971581886,0.1114614,1802.7,1802.0,0.95776633]
[1745971582189,5.19053715,1802.6,1802.2,0.55]
[1745971583197,5.72073701,1802.6,1802.2,0.55]
[1745971584353,11.57473701,1802.6,1802.2,0.55]
[1745971584559,5.72073701,1802.6,1802.2,0.55]
[1745971585287,0.43353715,1802.6,1802.3,0.7816]
[1745971585489,0.43353715,1802.6,1802.5,0.7816]
[1745971585787,0.43511168,1802.6,1802.5,1.3316]
[1745971585993,0.1114614,1802.7,1802.5,1.3316]
[1745971586170,0.1114614,1802.7,1802.5,1.73988317]
[1745971586492,0.43511168,1802.6,1802.5,1.73988317]
[1745971586791,0.1114614,1802.7,1802.5,1.73988317]
[1745971586987,0.43511168,1802.6,1802.5,1.73988317]
[1745971587178,0.1114614,1802.7,1802.5,1.73988317]
[1745971587376,0.43516976,1802.6,1802.5,1.73988317]
[1745971587889,0.1114614,1802.7,1802.6,1.3746]
[1745971588655,4.756,1803.3,1802.9,0.8246]
[1745971588857,4.756,1803.3,1803.0,0.55]
[1745971590194,0.1114,1803.2,1802.8,0.55]
[1745971592865,0.1114,1803.2,1802.7,0.55]
[1745971593405,0.1114,1803.1,1802.4,0.7889]
[1745971593702,0.73198999,1803.1,1802.5,0.55]
[1745971594002,0.73198999,1803.1,1802.4,3.7889]
[1745971594298,0.73198999,1803.1,1802.5,0.55]
[1745971595801,0.44325109,1803.0,1802.5,0.55]
[1745971596000,4.755,1802.9,1802.5,0.55]
[1745971596298,0.44294801,1802.8,1802.5,0.55]
[1745971597490,0.55434801,1802.8,1802.5,0.55]
[1745971601670,0.55434801,1802.8,1802.2,0.7935]
[1745971602369,0.40391974,1802.7,1802.3,0.55]
[1745971602573,4.735,1802.7,1802.4,0.7697]
[1745971602783,0.4030742,1802.6,1802.4,0.7697]
[1745971603006,4.735,1802.7,1802.4,0.7697]
[1745971603305,0.4030742,1802.6,1802.3,0.48243604]
[1745971603491,0.4030742,1802.6,1802.2,4.19507499]
[1745971603671,4.735,1802.8,1802.3,0.55]
[1745971603875,0.40296559,1802.5,1802.3,0.55]
[1745971604112,4.735,1802.8,1802.3,0.55]
[1745971604584,0.40344214,1802.7,1802.4,0.7697]
[1745971605407,0.40344214,1802.7,1802.3,0.55]
[1745971607411,0.40344214,1802.7,1802.5,0.55]
[1745971607581,4.735,1803.0,1802.6,1.334]
[1745971607785,0.4037453,1802.9,1802.7,0.60546871]
[1745971607981,4.735,1803.2,1802.8,1.334]
[1745971608193,0.37036548,1803.1,1802.9,0.55]
[1745971608421,6.09449994,1803.8,1803.0,0.784]
[1745971608724,5.10561122,1803.3,1803.0,1.19138723]
[1745971608880,5.10561122,1803.3,1803.1,0.55]
[1745971612425,0.37061122,1803.3,1803.1,0.55]
[1745971612639,4.734,1803.5,1803.2,1.3763]
[1745971612997,0.37423088,1803.4,1803.2,1.3763]
[1745971618510,4.734,1803.7,1803.2,1.3763]